[Event "CZE Extraliga 2019-20"]
[Site "Czech Republic"]
[Date "2019.10.13"]
[Round "2"]
[White "Kislinsky, Alexey"]
[Black "Bures, Jaroslav"]
[Result "1-0"]
[ECO "B13"]
[WhiteElo "2442"]
[BlackElo "2388"]
[Annotator "ChessBase"]
[PlyCount "133"]
[EventDate "2019.10.12"]
[EventType "team-tourn"]
[EventCountry "CZE"]
[SourceTitle "playchess.com"]
[Source "ChessBase"]
[SourceQuality "1"]
[WhiteTeam "Lysa nad Labem"]
[BlackTeam "Poruba"]
[TimeControl "40/5400+30:1800+30"]

1. e4 {[%emt 0:00:00]} c6 {[%emt 0:00:00]} 2. d4 {[%emt 0:00:00]} d5 {[%emt 0:00:00]} 3. exd5 {[%emt 0:00:00]} cxd5 {[%emt 0:00:00]} 4. c4 {[%emt 0:00:06]} Nf6 {[%emt 0:00:00]} 5. Nc3 {[%emt 0:00:07]} Nc6 {[%emt 0:00:00]} 6. Bg5 {[%emt 0:00:17]} dxc4 {[%emt 0:00:00]} 7. d5 {[%emt 0:01:36]} Ne5 {[%emt 0:00:00]} 8. Nf3 {[%emt 0:00:10]} Bg4 {[%emt 0:14:21]} 9. Bxc4 {[%emt 0:00:39]} Nxc4 {[%emt 0:09:54]} 10. Qa4+ {[%emt 0:01:33]} Qd7 {[%emt 0:08:05]} 11. Qxc4 {[%emt 0:00:12]} Bxf3 {[%emt 0:00:05]} 12. gxf3 {[%emt 0:00:15]} Rc8 {[%emt 0:00:02]} 13. Qd4 {[%emt 0:00:50]} h6 {[%emt 0:11:26]} 14. Bxf6 {[%emt 0:00:49]} exf6 {[%emt 0:00:27]} 15. O-O-O {[%emt 0:00:20]} Bc5 {[%emt 0:03:42]} 16. Rhe1+ {[%emt 0:00:11]} Kd8 {[%emt 0:00:16]} 17. Qd3 {[%emt 0:04:32]} Bd6 {[%emt 0:08:14]} 18. Kb1 {[%emt 0:01:48]} Kc7 {[%emt 0:00:46]} 19. Rg1 {[%emt 0:04:36]} g6 {[%emt 0:06:50]} 20. h4 {[%emt 0:11:11]} Kb8 {[%emt 0:00:50]} 21. h5 {[%emt 0:00:23]} g5 {[%emt 0:05:21]} 22. Ne4 {[%emt 0:01:33]} Be5 {[%emt 0:00:01]} 23. Ng3 {[%emt 0:02:37]} Rhd8 {[%emt 0:01:04]} 24. Nf5 {[%emt 0:17:26]} Rc5 {[%emt 0:00:04]} 25. Ne3 {[%emt 0:02:13]} Qh3 {[%emt 0:06:35]} 26. Qe4 {[%emt 0:08:59]} Qxh5 {[%emt 0:03:44]} 27. Rh1 {[%emt 0:05:21]} Qg6 {[%emt 0:00:03]} 28. Qxg6 {[%emt 0:00:05]} fxg6 {[%emt 0:00:02]} 29. Rxh6 {[%emt 0:00:07]} Rg8 {[%emt 0:00:22]} 30. d6 {[%emt 0:01:20]} Kc8 {[%emt 0:03:46]} 31. Nd5 {[%emt 0:08:45]} Rd8 {[%emt 0:04:07]} 32. d7+ {[%emt 0:02:12]} Kb8 {[%emt 0:00:22]} 33. Rh7 {[%emt 0:02:53]} Rc6 {[%emt 0:01:01]} 34. Ne7 {[%emt 0:03:15]} Rd6 {[%emt 0:00:32]} 35. Rxd6 {[%emt 0:00:20]} Bxd6 {[%emt 0:00:04]} 36. Nd5 {[%emt 0:03:28]} f5 {[%emt 0:00:20]} 37. Rg7 {[%emt 0:00:09]} b6 {[%emt 0:01:28]} 38. b4 {[%emt 0:01:11]} Kb7 {[%emt 0:03:01]} 39. b5 {[%emt 0:00:37]} Bc5 {[%emt 0:01:01]} 40. Kc2 {[%emt 0:01:31]} Bxf2 {[%emt 0:00:58]} 41. Kd3 {[%emt 0:31:40]} Bc5 {[%emt 0:35:14]} 42. a4 {[%emt 0:01:52]} Ba3 {[%emt 0:06:08]} 43. Rf7 {[%emt 0:03:49]} Bb2 {[%emt 0:00:00]} 44. Kc4 {[%emt 0:00:00]} Ba1 {[%emt 0:00:00]} 45. Re7 {[%emt 0:00:00]} Bb2 {[%emt 0:00:00]} 46. Rh7 {[%emt 0:00:00]} Ba1 {[%emt 0:00:00]} 47. Kd3 {[%emt 0:00:00]} Bb2 {[%emt 0:00:00]} 48. Kc2 {[%emt 0:00:00]} Ba3 {[%emt 0:00:00]} 49. Nf6 {[%emt 0:00:00]} Bd6 {[%emt 0:00:00]} 50. Kd3 {[%emt 0:00:00]} Be5 {[%emt 0:00:00]} 51. Ne8 {[%emt 0:00:00]} g4 {[%emt 0:00:00]} 52. fxg4 {[%emt 0:00:00]} fxg4 {[%emt 0:00:00]} 53. Ke4 {[%emt 0:00:20]} g3 {[%emt 0:00:00]} 54. Kf3 {[%emt 0:00:43]} Bc7 {[%emt 0:00:00]} 55. Kg2 {[%emt 0:00:28]} Bb8 {[%emt 0:00:00]} 56. Re7 {[%emt 0:00:21]} Bc7 {[%emt 0:00:00]} 57. Ng7 {[%emt 0:03:50]} Rb8 {[%emt 0:02:57]} 58. Ne6 {[%emt 0:00:44]} Bd8 {[%emt 0:00:04]} 59. Re8 {[%emt 0:01:22]} Bf6 {[%emt 0:00:02]} 60. Kxg3 {[%emt 0:00:20]} Ra8 {[%emt 0:01:12]} 61. Kg4 {[%emt 0:00:30]} a5 {[%emt 0:00:48]} 62. Rxa8 {[%emt 0:01:43]} Kxa8 {[%emt 0:00:04]} 63. d8=Q+ {[%emt 0:00:07]} Bxd8 {[%emt 0:00:02]} 64. Nxd8 {[%emt 0:00:05]} Kb8 {[%emt 0:00:01]} 65. Ne6 {[%emt 0:00:11]} Kc8 {[%emt 0:00:05]} 66. Nf4 {[%emt 0:00:06]} Kd7 {[%emt 0:00:12]} 67. Nd5 {[%emt 0:00:04]} 1-0

[Event "CZE Extraliga 2019-20"]
[Site "Czech Republic"]
[Date "2019.10.13"]
[Round "2"]
[White "Kanovsky, David"]
[Black "Rogozenco, Dorian"]
[Result "1/2-1/2"]
[ECO "B33"]
[WhiteElo "2424"]
[BlackElo "2491"]
[Annotator "ChessBase"]
[PlyCount "79"]
[EventDate "2019.10.12"]
[EventType "team-tourn"]
[EventCountry "CZE"]
[SourceTitle "playchess.com"]
[Source "ChessBase"]
[SourceQuality "1"]
[WhiteTeam "Poruba"]
[BlackTeam "Lysa nad Labem"]
[TimeControl "40/5400+30:1800+30"]

1. e4 {[%emt 0:00:00]} c5 {[%emt 0:00:00]} 2. Nf3 {[%emt 0:00:00]} Nc6 {[%emt 0:00:22]} 3. d4 {[%emt 0:00:00]} cxd4 {[%emt 0:00:06]} 4. Nxd4 {[%emt 0:00:00]} Nf6 {[%emt 0:00:04]} 5. Nc3 {[%emt 0:00:04]} e5 {[%emt 0:00:47]} 6. Ndb5 {[%emt 0:00:23]} d6 {[%emt 0:00:10]} 7. Nd5 {[%emt 0:02:07]} Nxd5 {[%emt 0:01:16]} 8. exd5 {[%emt 0:00:03]} Nb8 {[%emt 0:00:49]} 9. a4 {[%emt 0:00:16]} Be7 {[%emt 0:01:40]} 10. Be2 {[%emt 0:00:05]} O-O {[%emt 0:00:34]} 11. O-O {[%emt 0:00:06]} Nd7 {[%emt 0:01:58]} 12. Kh1 {[%emt 0:03:36]} f5 {[%emt 0:07:46]} 13. f4 {[%emt 0:00:06]} a6 {[%emt 0:00:25]} 14. Na3 {[%emt 0:00:05]} exf4 {[%emt 0:08:54]} 15. Bxf4 {[%emt 0:00:53]} Nc5 {[%emt 0:01:09]} 16. Nc4 {[%emt 0:01:54]} a5 {[%emt 0:00:06]} 17. c3 {[%emt 0:14:27]} b6 {[%emt 0:02:35]} 18. Be3 {[%emt 0:03:51]} Rb8 {[%emt 0:20:18]} 19. Na3 {[%emt 0:05:48]} Bg5 {[%emt 0:03:06]} 20. Bg1 {[%emt 0:09:00]} Rf6 {[%emt 0:04:22]} 21. Nb5 {[%emt 0:05:11]} Rh6 {[%emt 0:02:29]} 22. Nd4 {[%emt 0:05:56]} Ne4 {[%emt 0:00:28]} 23. Rf3 {[%emt 0:00:24]} Bf4 {[%emt 0:00:05]} 24. Bd3 {[%emt 0:09:06]} Ng3+ {[%emt 0:07:38]} 25. Rxg3 {[%emt 0:00:32]} Bxg3 {[%emt 0:00:04]} 26. Bxf5 {[%emt 0:02:01]} Qg5 {[%emt 0:16:57]} 27. Qd3 {[%emt 0:04:55]} g6 {[%emt 0:07:03]} 28. Bxc8 {[%emt 0:09:10]} Rxc8 {[%emt 0:00:03]} 29. Rf1 {[%emt 0:00:17]} Qg4 {[%emt 0:06:49]} 30. Qe3 {[%emt 0:03:21]} Rh5 {[%emt 0:00:04]} 31. Qe7 {[%emt 0:00:58]} Be5 {[%emt 0:00:09]} 32. Ne6 {[%emt 0:16:12]} Rf5 {[%emt 0:04:26]} 33. h3 {[%emt 0:00:16]} Qh5 {[%emt 0:02:26]} 34. Rxf5 {[%emt 0:04:19]} Qxf5 {[%emt 0:00:41]} 35. Ng5 {[%emt 0:00:11]} Bg7 {[%emt 0:00:17]} 36. Bd4 {[%emt 0:01:55]} Qf1+ {[%emt 0:00:33]} 37. Kh2 {[%emt 0:00:09]} Qf4+ {[%emt 0:00:19]} 38. Kh1 {[%emt 0:00:41]} Qf1+ {[%emt 0:00:05]} 39. Kh2 {[%emt 0:00:09]} Qf4+ {[%emt 0:00:04]} 40. Kh1 {[%emt 0:01:01]} 1/2-1/2

[Event "CZE Extraliga 2019-20"]
[Site "Czech Republic"]
[Date "2019.10.13"]
[Round "2"]
[White "Klima, Lukas"]
[Black "Priehoda, Vitezslav"]
[Result "1/2-1/2"]
[ECO "B80"]
[WhiteElo "2334"]
[BlackElo "2344"]
[Annotator "ChessBase"]
[PlyCount "23"]
[EventDate "2019.10.12"]
[EventType "team-tourn"]
[EventCountry "CZE"]
[SourceTitle "playchess.com"]
[Source "ChessBase"]
[SourceQuality "1"]
[WhiteTeam "Poruba"]
[BlackTeam "Lysa nad Labem"]
[TimeControl "40/5400+30:1800+30"]

1. e4 {[%emt 0:00:00]} c5 {[%emt 0:00:00]} 2. Nf3 {[%emt 0:00:30]} e6 {[%emt 0:00:30]} 3. d4 {[%emt 0:00:30]} cxd4 {[%emt 0:00:30]} 4. Nxd4 {[%emt 0:00:30]} Nc6 {[%emt 0:00:30]} 5. Nc3 {[%emt 0:00:30]} Qc7 {[%emt 0:00:30]} 6. g3 {[%emt 0:00:30]} a6 {[%emt 0:00:30]} 7. Bg2 {[%emt 0:00:30]} Nf6 {[%emt 0:00:30]} 8. O-O {[%emt 0:00:30]} d6 {[%emt 0:00:30]} 9. Nxc6 {[%emt 0:00:30]} bxc6 {[%emt 0:00:30]} 10. Na4 {[%emt 0:00:30]} e5 {[%emt 0:00:30]} 11. c4 {[%emt 0:00:30]} Be7 {[%emt 0:00:30]} 12. c5 {[%emt 0:00:30]} 1/2-1/2

[Event "CZE Extraliga 2019-20"]
[Site "Czech Republic"]
[Date "2019.10.13"]
[Round "2"]
[White "Koziol, Kamil"]
[Black "Bartel, Mateusz"]
[Result "0-1"]
[ECO "B12"]
[WhiteElo "2283"]
[BlackElo "2635"]
[Annotator "RC"]
[PlyCount "68"]
[EventDate "2019.10.12"]
[EventType "team-tourn"]
[EventCountry "CZE"]
[SourceTitle "playchess.com"]
[Source "ChessBase"]
[SourceQuality "1"]
[WhiteTeam "Ostrava"]
[BlackTeam "Novoborsky"]
[TimeControl "40/5400+30:1800+30"]

1. e4 {[%emt 0:00:00]} c6 {[%emt 0:00:00]} 2. d4 {[%emt 0:00:00]} d5 {[%emt 0:00:00]} 3. e5 {[%emt 0:00:06]} Bf5 {[%emt 0:00:00]} 4. Nf3 {[%emt 0:01:48]} e6 {[%emt 0:00:00]} 5. Be2 {[%emt 0:00:28]} Ne7 {[%emt 0:00:01]} 6. O-O {[%emt 0:02:17]} Ng6 {[%emt 0:00:24]} 7. Be3 {[%emt 0:07:30]} Nd7 {[%emt 0:00:08]} 8. Ne1 {[%emt 0:10:00]} h5 {[%emt 0:00:05]} 9. Nd2 {[%emt 0:01:52]} Ndxe5 {[%emt 0:03:54]} 10. dxe5 {[%emt 0:03:17]} d4 {[%emt 0:00:16]} 11. Nc4 {[%emt 0:19:39]} dxe3 {[%emt 0:02:43]} 12. Nxe3 {[%emt 0:05:45]} Be4 {[%emt 0:09:12]} 13. Bf3 {[%emt 0:05:37]} Bxf3 {[%emt 0:08:30]} 14. Nxf3 {[%emt 0:01:39]} Qa5 {[%emt 0:00:52]} 15. Qd4 {[%emt 0:02:31]} Rd8 {[%emt 0:02:37]} 16. Qe4 {[%emt 0:00:39]} Be7 {[%emt 0:03:20]} 17. a3 {[%emt 0:06:39]} O-O {[%emt 0:00:06]} 18. h4 {[%emt 0:03:19]} Rd7 {[%emt 0:00:59]} 19. g3 {[%emt 0:00:40]} Rfd8 {[%emt 0:00:42]} 20. Kg2 {[%emt 0:03:58]} Qb5 {[%emt 0:02:43]} 21. b4 {[%emt 0:10:42]} c5 {[%emt 0:07:51]} 22. Rab1 {[%emt 0:08:43]} Rd4 {[%emt 0:08:03]} 23. Nxd4 {[%emt 0:01:16]} Rxd4 {[%emt 0:00:10]} 24. Qf3 {[%emt 0:01:46]} Nxe5 {[%emt 0:00:13]} 25. Qxh5 {[%emt 0:01:42]} Qc6+ {[%emt 0:01:28]} 26. f3 {[%emt 0:00:13]} Bf6 {[%emt 0:00:29]} 27. Rf2 {[%emt 0:00:52]} g6 {[%emt 0:00:26]} 28. Qh6 {[%emt 0:00:24]} Bg7 {[%emt 0:00:08]} 29. Qg5 {[%emt 0:00:32]} f6 {[%emt 0:00:11]} 30. Qf4 {[%emt 0:00:28]} Rxf4 {[%emt 0:00:08]} 31. gxf4 {[%emt 0:00:05]} Nf7 {[%emt 0:01:23]} 32. bxc5 {[%emt 0:00:59]} Qxc5 {[%emt 0:01:28]} 33. Rb3 {[%emt 0:00:24]} f5 {[%emt 0:01:00]} 34. Rd2 {[%emt 0:00:25]} Bh6 {[%emt 0:02:16]} 0-1

[Event "CZE Extraliga 2019-20"]
[Site "Czech Republic"]
[Date "2019.10.13"]
[Round "2"]
[White "Walek, Petr"]
[Black "Babula, Vlastimil"]
[Result "0-1"]
[ECO "B82"]
[WhiteElo "2263"]
[BlackElo "2559"]
[Annotator "ChessBase"]
[PlyCount "92"]
[EventDate "2019.10.12"]
[EventType "team-tourn"]
[EventCountry "CZE"]
[SourceTitle "playchess.com"]
[Source "ChessBase"]
[SourceQuality "1"]
[WhiteTeam "Ostrava"]
[BlackTeam "Novoborsky"]
[TimeControl "40/5400+30:1800+30"]

1. e4 {[%emt 0:00:00]} c5 {[%emt 0:00:00]} 2. Nf3 {[%emt 0:00:00]} e6 {[%emt 0:00:00]} 3. d4 {[%emt 0:00:01]} cxd4 {[%emt 0:00:04]} 4. Nxd4 {[%emt 0:00:05]} Nc6 {[%emt 0:00:26]} 5. Nc3 {[%emt 0:00:26]} Qc7 {[%emt 0:00:18]} 6. f4 {[%emt 0:00:49]} a6 {[%emt 0:02:55]} 7. Be3 {[%emt 0:01:12]} b5 {[%emt 0:04:17]} 8. Nb3 {[%emt 0:21:17]} d6 {[%emt 0:11:58]} 9. Bd3 {[%emt 0:08:17]} Nf6 {[%emt 0:01:06]} 10. Qf3 {[%emt 0:04:31]} Bb7 {[%emt 0:01:06]} 11. O-O-O {[%emt 0:11:03]} Rc8 {[%emt 0:09:19]} 12. Kb1 {[%emt 0:13:13]} Be7 {[%emt 0:05:04]} 13. g4 {[%emt 0:11:58]} Nd7 {[%emt 0:02:20]} 14. Qf2 {[%emt 0:02:30]} O-O {[%emt 0:08:54]} 15. g5 {[%emt 0:03:18]} Nb4 {[%emt 0:02:55]} 16. Rhg1 {[%emt 0:06:06]} Rfe8 {[%emt 0:12:46]} 17. Rg3 {[%emt 0:06:47]} g6 {[%emt 0:06:33]} 18. h4 {[%emt 0:02:19]} Nc5 {[%emt 0:07:47]} 19. Nxc5 {[%emt 0:01:59]} dxc5 {[%emt 0:00:13]} 20. Bf1 {[%emt 0:01:17]} Red8 {[%emt 0:02:02]} 21. Rxd8+ {[%emt 0:01:05]} Rxd8 {[%emt 0:00:33]} 22. h5 {[%emt 0:01:42]} Bf8 {[%emt 0:03:31]} 23. hxg6 {[%emt 0:01:02]} fxg6 {[%emt 0:02:46]} 24. Bh3 {[%emt 0:00:29]} Qe7 {[%emt 0:02:20]} 25. f5 {[%emt 0:00:28]} exf5 {[%emt 0:01:10]} 26. exf5 {[%emt 0:00:07]} Nd5 {[%emt 0:08:39]} 27. Nxd5 {[%emt 0:00:35]} Bxd5 {[%emt 0:00:08]} 28. Bc1 {[%emt 0:00:51]} Qf7 {[%emt 0:01:21]} 29. b3 {[%emt 0:00:30]} c4 {[%emt 0:02:06]} 30. Qe2 {[%emt 0:00:32]} Re8 {[%emt 0:01:44]} 31. Qf1 {[%emt 0:00:29]} Be4 {[%emt 0:00:23]} 32. f6 {[%emt 0:00:28]} cxb3 {[%emt 0:00:30]} 33. axb3 {[%emt 0:00:08]} Qc7 {[%emt 0:00:20]} 34. Rd3 {[%emt 0:00:55]} Bxd3 {[%emt 0:00:16]} 35. Qxd3 {[%emt 0:00:05]} Rd8 {[%emt 0:00:51]} 36. Be6+ {[%emt 0:00:45]} Kh8 {[%emt 0:00:02]} 37. Qe4 {[%emt 0:00:37]} Rd1 {[%emt 0:00:28]} 38. Bg4 {[%emt 0:00:32]} Rg1 {[%emt 0:00:27]} 39. Qd4 {[%emt 0:00:22]} Qc5 {[%emt 0:00:24]} 40. Qd7 {[%emt 0:00:38]} Rxc1+ {[%emt 0:01:19]} 41. Kxc1 {[%emt 0:01:58]} Qxg5+ {[%emt 0:01:10]} 42. Kd1 {[%emt 0:08:09]} Qxf6 {[%emt 0:00:14]} 43. Be6 {[%emt 0:04:36]} h5 {[%emt 0:12:28]} 44. Qc8 {[%emt 0:02:04]} Kh7 {[%emt 0:01:27]} 45. Qxa6 {[%emt 0:03:28]} Qf1+ {[%emt 0:01:25]} 46. Kd2 {[%emt 0:00:13]} Bh6+ {[%emt 0:00:19]} 0-1

[Event "CZE Extraliga 2019-20"]
[Site "Czech Republic"]
[Date "2019.10.13"]
[Round "2.1"]
[White "Azarov, Sergei"]
[Black "Kraus, Tomas"]
[Result "1/2-1/2"]
[ECO "C42"]
[WhiteElo "2586"]
[BlackElo "2475"]
[Annotator "ChessBase"]
[PlyCount "34"]
[EventDate "2019.09.15"]
[EventType "team-tourn"]
[EventCountry "CZE"]
[SourceTitle "playchess.com"]
[Source "ChessBase"]
[SourceQuality "1"]
[WhiteTeam "BŠŠ Frýdek-Místek"]
[BlackTeam "ŠK Zikuda Turnov"]
[TimeControl "40/5400+30:1800+30"]

1. e4 {[%emt 0:00:00]} e5 {[%emt 0:00:00]} 2. Nf3 {[%emt 0:00:00]} Nf6 {[%emt 0:00:09]} 3. Nxe5 {[%emt 0:00:44]} d6 {[%emt 0:00:05]} 4. Nf3 {[%emt 0:00:04]} Nxe4 {[%emt 0:00:05]} 5. d4 {[%emt 0:00:37]} d5 {[%emt 0:00:17]} 6. Bd3 {[%emt 0:00:25]} Bd6 {[%emt 0:02:29]} 7. O-O {[%emt 0:03:55]} O-O {[%emt 0:00:33]} 8. c4 {[%emt 0:06:36]} c6 {[%emt 0:00:52]} 9. Qc2 {[%emt 0:00:32]} Na6 {[%emt 0:03:06]} 10. a3 {[%emt 0:02:35]} Bg4 {[%emt 0:01:54]} 11. Ne5 {[%emt 0:00:57]} Bxe5 {[%emt 0:00:32]} 12. dxe5 {[%emt 0:00:06]} Nac5 {[%emt 0:00:03]} 13. f3 {[%emt 0:04:03]} Nxd3 {[%emt 0:00:57]} 14. Qxd3 {[%emt 0:00:10]} Nc5 {[%emt 0:00:03]} 15. Qd4 {[%emt 0:00:44]} Nb3 {[%emt 0:00:11]} 16. Qxg4 {[%emt 0:00:13]} Nxa1 {[%emt 0:00:04]} 17. Bh6 {[%emt 0:17:46]} g6 {[%emt 0:00:32]} 1/2-1/2

[Event "CZE Extraliga 2019-20"]
[Site "Czech Republic"]
[Date "2019.10.13"]
[Round "2.1"]
[White "Stohl, Igor"]
[Black "DUR3 Shengelia David GM"]
[Result "1/2-1/2"]
[ECO "D11"]
[WhiteElo "2487"]
[BlackElo "2531"]
[Annotator "RC"]
[PlyCount "23"]
[EventDate "2019.09.15"]
[EventType "team-tourn"]
[EventCountry "CZE"]
[SourceTitle "playchess.com"]
[Source "ChessBase"]
[SourceQuality "1"]
[TimeControl "40/5400+30:1800+30"]

1. Nf3 {[%emt 0:00:00]} Nf6 {[%emt 0:00:00]} 2. c4 {[%emt 0:00:29]} c6 {[%emt 0:01:40]} 3. d4 {[%emt 0:02:07]} d5 {[%emt 0:00:21]} 4. e3 {[%emt 0:00:15]} Bg4 {[%emt 0:00:17]} 5. h3 {[%emt 0:01:18]} Bxf3 {[%emt 0:00:21]} 6. Qxf3 {[%emt 0:00:24]} e6 {[%emt 0:00:05]} 7. Nc3 {[%emt 0:00:59]} Bb4 {[%emt 0:00:19]} 8. Bd2 {[%emt 0:03:24]} Nbd7 {[%emt 0:01:28]} 9. Bd3 {[%emt 0:02:33]} O-O {[%emt 0:00:13]} 10. O-O {[%emt 0:03:14]} Re8 {[%emt 0:00:54]} 11. a3 {[%emt 0:09:27]} Bxc3 {[%emt 0:00:54]} 12. Bxc3 1/2-1/2

[Event "CZE Extraliga 2019-20"]
[Site "Czech Republic"]
[Date "2019.10.13"]
[Round "2.1"]
[White "Cernousek, Lukas"]
[Black "Balogh, Csaba"]
[Result "1/2-1/2"]
[ECO "C47"]
[WhiteElo "2458"]
[BlackElo "2587"]
[Annotator "RC"]
[PlyCount "31"]
[EventDate "2019.09.15"]
[EventType "team-tourn"]
[EventCountry "CZE"]
[SourceTitle "playchess.com"]
[Source "ChessBase"]
[SourceQuality "1"]
[TimeControl "40/5400+30:1800+30"]

1. e4 {[%emt 0:00:00]} e5 {[%emt 0:00:00]} 2. Nf3 {[%emt 0:00:00]} Nc6 {[%emt 0:00:03]} 3. Nc3 {[%emt 0:00:00]} Nf6 {[%emt 0:00:19]} 4. d4 {[%emt 0:00:00]} exd4 {[%emt 0:00:57]} 5. Nxd4 {[%emt 0:00:03]} Bb4 {[%emt 0:00:07]} 6. Nxc6 {[%emt 0:00:05]} bxc6 {[%emt 0:00:06]} 7. Bd3 {[%emt 0:00:05]} O-O {[%emt 0:01:45]} 8. O-O {[%emt 0:00:06]} d5 {[%emt 0:00:12]} 9. exd5 {[%emt 0:00:07]} cxd5 {[%emt 0:00:32]} 10. Bg5 {[%emt 0:00:06]} c6 {[%emt 0:02:48]} 11. Qf3 {[%emt 0:00:07]} h6 {[%emt 0:09:40]} 12. Bxf6 {[%emt 0:00:07]} Qxf6 {[%emt 0:00:03]} 13. Qxf6 {[%emt 0:00:07]} gxf6 {[%emt 0:00:04]} 14. Ne2 {[%emt 0:00:07]} Bd6 {[%emt 0:00:12]} 15. Nd4 {[%emt 0:00:17]} c5 {[%emt 0:00:05]} 16. Nf5 {[%emt 0:00:36]} 1/2-1/2

[Event "CZE Extraliga 2019-20"]
[Site "Czech Republic"]
[Date "2019.10.13"]
[Round "2.2"]
[White "Hracek, Zbynek"]
[Black "Kozak, Adam"]
[Result "1/2-1/2"]
[ECO "C67"]
[WhiteElo "2572"]
[BlackElo "2512"]
[Annotator "ChessBase"]
[PlyCount "31"]
[EventDate "2019.09.15"]
[EventType "team-tourn"]
[EventCountry "CZE"]
[SourceTitle "playchess.com"]
[Source "ChessBase"]
[SourceQuality "1"]
[WhiteTeam "GASCO Pardubice"]
[BlackTeam "Slavia Kromerí\[#\]"]
[TimeControl "40/5400+30:1800+30"]

1. e4 {[%emt 0:00:05]} e5 {[%emt 0:00:00]} 2. Nf3 {[%emt 0:00:09]} Nc6 {[%emt 0:00:00]} 3. Bb5 {[%emt 0:01:04]} Nf6 {[%emt 0:00:07]} 4. O-O {[%emt 0:00:41]} Nxe4 {[%emt 0:00:10]} 5. d4 {[%emt 0:01:54]} Nd6 {[%emt 0:04:54]} 6. Bxc6 {[%emt 0:00:09]} dxc6 {[%emt 0:00:09]} 7. dxe5 {[%emt 0:00:04]} Nf5 {[%emt 0:00:10]} 8. Qxd8+ {[%emt 0:00:04]} Kxd8 {[%emt 0:00:07]} 9. h3 {[%emt 0:00:18]} Be7 {[%emt 0:01:34]} 10. Nc3 {[%emt 0:00:32]} Bd7 {[%emt 0:03:36]} 11. Rd1 {[%emt 0:06:49]} Kc8 {[%emt 0:01:43]} 12. b3 {[%emt 0:06:52]} h6 {[%emt 0:05:09]} 13. Bb2 {[%emt 0:02:24]} a5 {[%emt 0:02:29]} 14. a4 {[%emt 0:06:47]} b6 {[%emt 0:06:06]} 15. Rd2 {[%emt 0:04:02]} Bb4 {[%emt 0:12:13]} 16. Rad1 {[%emt 0:01:27]} 1/2-1/2

[Event "CZE Extraliga 2019-20"]
[Site "Czech Republic"]
[Date "2019.10.13"]
[Round "2.2"]
[White "Stocek, Jiri"]
[Black "Druska, Juraj"]
[Result "1/2-1/2"]
[ECO "A46"]
[WhiteElo "2569"]
[BlackElo "2472"]
[Annotator "ChessBase"]
[PlyCount "80"]
[EventDate "2019.09.15"]
[EventType "team-tourn"]
[EventCountry "CZE"]
[SourceTitle "playchess.com"]
[Source "ChessBase"]
[SourceQuality "1"]
[WhiteTeam "Moravská Slavia Brno"]
[BlackTeam "Siesta Solution Unichess"]
[TimeControl "40/5400+30:1800+30"]

1. d4 {[%emt 0:01:25]} Nf6 {[%emt 0:00:00]} 2. Nf3 {[%emt 0:04:30]} e6 {[%emt 0:02:14]} 3. Bf4 {[%emt 0:03:39]} c5 {[%emt 0:01:44]} 4. e3 {[%emt 0:00:08]} Nc6 {[%emt 0:00:57]} 5. Nbd2 {[%emt 0:01:57]} d5 {[%emt 0:05:33]} 6. c3 {[%emt 0:00:39]} Bd6 {[%emt 0:00:06]} 7. Bg3 {[%emt 0:02:29]} O-O {[%emt 0:00:08]} 8. Bd3 {[%emt 0:00:09]} b6 {[%emt 0:00:05]} 9. Qe2 {[%emt 0:00:40]} Bb7 {[%emt 0:00:04]} 10. Rd1 {[%emt 0:00:15]} Rc8 {[%emt 0:00:04]} 11. e4 {[%emt 0:07:22]} Be7 {[%emt 0:00:08]} 12. exd5 {[%emt 0:04:35]} exd5 {[%emt 0:15:45]} 13. Bf5 {[%emt 0:02:08]} cxd4 {[%emt 0:04:54]} 14. Nxd4 {[%emt 0:05:58]} Nxd4 {[%emt 0:06:13]} 15. cxd4 {[%emt 0:00:12]} Rc6 {[%emt 0:22:07]} 16. O-O {[%emt 0:03:14]} g6 {[%emt 0:05:45]} 17. Bd3 {[%emt 0:04:12]} Re6 {[%emt 0:06:01]} 18. Be5 {[%emt 0:07:26]} Nd7 {[%emt 0:02:56]} 19. f4 {[%emt 0:02:12]} Rc6 {[%emt 0:00:05]} 20. Rc1 {[%emt 0:07:51]} Nxe5 {[%emt 0:04:05]} 21. fxe5 {[%emt 0:01:37]} Qc7 {[%emt 0:05:20]} 22. Rce1 {[%emt 0:01:35]} Bc8 {[%emt 0:01:23]} 23. Qe3 {[%emt 0:03:21]} b5 {[%emt 0:02:42]} 24. Nf3 {[%emt 0:02:23]} b4 {[%emt 0:00:22]} 25. Rf2 {[%emt 0:05:10]} Ba6 {[%emt 0:02:18]} 26. Bxa6 {[%emt 0:01:29]} Rxa6 {[%emt 0:00:01]} 27. Rc1 {[%emt 0:07:26]} Rc6 {[%emt 0:00:28]} 28. Rcf1 {[%emt 0:00:37]} Rc2 {[%emt 0:08:42]} 29. h4 {[%emt 0:04:55]} Rxf2 {[%emt 0:00:10]} 30. Rxf2 {[%emt 0:01:30]} Rc8 {[%emt 0:00:47]} 31. Rf1 {[%emt 0:00:56]} Qd7 {[%emt 0:01:34]} 32. Ng5 {[%emt 0:03:03]} Bxg5 {[%emt 0:00:07]} 33. Qxg5 {[%emt 0:00:23]} h5 {[%emt 0:01:03]} 34. Rf2 {[%emt 0:03:13]} Rc4 {[%emt 0:01:55]} 35. Qf4 {[%emt 0:03:36]} a5 {[%emt 0:00:12]} 36. b3 {[%emt 0:01:12]} Rc6 {[%emt 0:00:34]} 37. Kh2 {[%emt 0:00:32]} Kg7 {[%emt 0:00:18]} 38. Qg5 {[%emt 0:00:41]} Kg8 {[%emt 0:00:56]} 39. Qf4 {[%emt 0:02:49]} Kg7 {[%emt 0:00:07]} 40. Qg5 {[%emt 0:00:09]} Kg8 {[%emt 0:00:14]} 1/2-1/2